bitfinex-derivatives/quotes_ETHF0:USTF0_20241231
["timestamp","ask_amount","ask_price","bid_price","bid_amount"]
[1735668063757,0.2979,3361.7,3361.6,0.2979]
[1735668064158,0.29789,3361.8,3361.7,0.29789]
[1735668064466,0.2979,3361.7,3361.6,0.2979]
[1735668064664,3.2078,3362.2,3361.5,3.2078]
[1735668065562,0.29787,3362.0,3361.9,0.29787]
[1735668066561,4.35979,3362.4,3361.9,3.2078]
[1735668066562,3.6152,3362.4,3361.9,3.2078]
[1735668066762,2.4173,3362.4,3362.3,0.29784]
[1735668066965,0.29781,3362.7,3362.6,0.29782]
[1735668067170,1.2551,3362.8,3362.3,3.2078]
[1735668067561,1.5529,3362.8,3362.7,0.29781]
[1735668068757,1.5529,3362.8,3362.6,0.29781]
[1735668068965,0.29782,3362.6,3362.3,3.2078]
[1735668069167,0.29779,3362.9,3362.8,0.2978]
[1735668069357,2.5186,3363.2,3362.3,3.2078]
[1735668069762,0.29782,3362.6,3362.4,0.29783]
[1735668069967,0.29782,3362.6,3362.4,0.29782]
[1735668070362,0.74443,3363.1,3362.3,3.2078]
[1735668070567,0.74443,3363.1,3362.0,1.2639]
[1735668070758,0.29782,3362.6,3362.4,0.29783]
[1735668071162,0.74443,3363.1,3362.3,3.2078]
[1735668071363,0.2978,3362.8,3362.6,0.29781]
[1735668071569,0.2978,3362.8,3362.5,0.29782]
[1735668071769,5.92718729,3363.2,3362.3,3.2078]
[1735668071964,5.92718729,3363.2,3363.1,0.29777]
[1735668071965,4.62338729,3363.2,3363.1,0.29777]
[1735668072268,3.40858729,3363.2,3363.1,0.29777]
[1735668072471,1.2601,3363.3,3362.8,1.2946]
[1735668072676,0.29778,3363.1,3362.8,1.59239]
[1735668073062,1.2601,3363.3,3362.8,1.2946]
[1735668073262,0.29778,3363.1,3362.8,1.5924]
[1735668073458,1.2601,3363.3,3362.8,1.2946]
[1735668073665,0.29783,3362.4,3362.3,3.2078]
[1735668073866,0.29783,3362.4,3362.0,0.29787]
[1735668073867,3.2078,3362.8,3361.9,3.2078]
[1735668074064,0.29786,3362.1,3361.9,3.2078]
[1735668074263,0.29785,3362.2,3361.9,3.50567]
[1735668074467,1.3136,3362.5,3361.9,3.2078]
[1735668074668,0.29781,3362.7,3362.4,0.29783]
[1735668074970,1.04224,3363.0,3362.3,3.2078]
[1735668075167,4.15304729,3363.0,3362.3,3.50564]
[1735668075373,0.29783,3362.5,3362.3,3.50564]
[1735668075963,3.40858729,3363.0,3362.3,3.2078]
[1735668076170,0.2978,3362.8,3362.6,0.29781]
[1735668076369,0.29781,3362.7,3362.5,0.29782]
[1735668076666,0.2978,3362.8,3362.6,0.29781]
[1735668077370,0.2978,3362.8,3362.3,3.2078]
[1735668077575,1.3136,3363.1,3362.3,3.2078]
[1735668077775,1.3136,3363.1,3362.6,0.29781]
[1735668077974,2.89665636,3363.0,3362.3,3.2078]
[1735668078169,0.29783,3362.4,3362.3,3.50564]
[1735668078370,0.29783,3362.4,3362.3,3.2078]
[1735668078765,3.64112636,3363.0,3361.9,3.2078]
[1735668079073,4.5214,3363.1,3362.3,3.2078]
[1735668079272,0.29782,3362.6,3362.4,0.29783]
[1735668079473,0.29782,3362.5,3362.4,0.29783]
[1735668079678,4.5214,3363.1,3362.3,3.2078]
[1735668080176,0.74446,3363.0,3362.4,0.29783]
[1735668080376,0.29782,3362.5,3362.4,0.29783]
[1735668081080,0.29782,3362.6,3362.4,0.29783]
[1735668081270,0.29596201,3362.6,3362.4,0.29783]
[1735668081575,0.29781,3362.7,3362.5,0.29782]
[1735668082779,0.29782,3362.6,3362.5,0.29782]
[1735668082974,4.5214,3363.1,3362.4,1.59673]
[1735668083275,0.29787,3362.0,3361.9,3.2078]
[1735668083977,0.29792,3361.4,3361.3,6.99288859]
[1735668084974,0.74481,3361.4,3360.3,1.393]
[1735668085168,1.1959,3361.4,3360.6,3.2078]
[1735668085379,0.29797,3360.9,3360.8,0.29796]
[1735668086267,0.29796,3361.0,3360.9,0.29796]
[1735668088581,0.29795,3361.2,3361.1,0.29794]
[1735668089576,1.49383,3361.4,3361.3,0.29793]
[1735668090083,0.29793,3361.4,3361.3,0.29793]
[1735668090397,0.29794,3361.3,3361.2,0.29793]
[1735668091479,1.2745,3361.5,3361.0,3.2078]
[1735668091683,1.57242,3361.5,3361.4,0.29792]
[1735668091879,2.89665636,3362.0,3361.1,1.3193]
[1735668092083,0.2979,3361.7,3361.6,0.2979]
[1735668092584,0.29782,3362.5,3362.4,0.29783]
[1735668092781,6.61638729,3362.6,3362.5,0.29782]
[1735668092983,3.40858729,3362.6,3362.5,0.29782]
[1735668093287,4.4558,3363.3,3363.0,0.29777]
[1735668093288,0.29777,3363.1,3363.0,0.29777]
[1735668093679,0.29779,3363.0,3362.9,0.29778]
[1735668094281,0.29778,3363.1,3363.0,0.29777]
[1735668094482,0.29777,3363.1,3363.0,0.29778]
[1735668094686,1.99241,3363.3,3362.8,3.2078]
[1735668094883,0.29782,3362.6,3362.4,4.89863]
[1735668095385,0.29782,3362.5,3362.4,3.2078]
[1735668095786,2.89665636,3363.2,3362.3,3.2078]
[1735668095988,0.29782,3362.6,3362.4,0.29783]
[1735668096188,0.29781,3362.7,3362.5,0.29782]
[1735668096589,0.74442,3363.2,3362.3,3.2078]
[1735668096786,0.29779,3362.9,3362.3,3.2078]
[1735668097089,0.29779,3362.9,3362.8,3.2078]
[1735668098083,1.248,3363.3,3362.8,3.2078]
[1735668098481,0.29781,3362.7,3362.5,0.29782]
[1735668099087,3.64108636,3363.2,3362.4,3.2078]
[1735668099288,0.29782,3362.5,3362.4,3.2078]
[1735668099687,0.74436,3363.5,3362.6,0.29781]
[1735668099987,0.2978,3362.9,3362.8,3.2078]
[1735668100185,4.16255636,3363.2,3362.0,2.6393]
[1735668100186,0.29783,3362.4,3362.3,3.2078]
[1735668100379,0.29786,3362.1,3362.0,1.2463]
[1735668100580,0.29787,3362.0,3361.9,3.2078]
[1735668100986,0.74457,3362.5,3361.5,3.2078]
[1735668101281,0.29785,3362.2,3362.0,0.29787]
[1735668101487,0.2978,3362.8,3362.5,0.29782]
[1735668101787,1.2151,3363.2,3362.4,3.2078]
[1735668101981,0.29778,3363.0,3362.7,0.2978]
[1735668102189,0.29779,3362.9,3362.7,0.2978]
[1735668102492,1.2192,3363.4,3363.3,0.29775]
[1735668102682,4.84250306,3363.7,3363.4,0.29774]
[1735668102683,0.29772,3363.7,3363.4,0.29774]
[1735668103690,0.29773,3363.6,3363.4,0.29774]
[1735668103886,3.40858729,3364.1,3364.0,0.29769]
[1735668104086,3.2078,3364.5,3363.9,3.2078]
[1735668104294,0.29765,3364.5,3363.9,3.2078]
[1735668104593,0.29765,3364.5,3364.2,0.29767]
[1735668105190,0.29765,3364.5,3364.3,3.2078]
[1735668105493,0.29766,3364.4,3364.3,3.2078]
[1735668107890,2.5078,3364.7,3364.3,3.2078]
[1735668108095,1.2151,3364.7,3364.6,0.29764]
[1735668108485,0.29761,3365.0,3364.8,0.29762]
[1735668108696,4.54478306,3365.7,3365.4,0.29757]
[1735668108887,5.68097882,3365.5,3365.4,0.29757]
[1735668109292,5.68097882,3365.5,3365.4,1.68857]
[1735668109501,4.12097882,3365.5,3365.4,6.68857]
[1735668109796,6.81717459,3365.9,3365.8,0.29753]
[1735668109997,6.81717459,3365.9,3365.8,3.50533]
[1735668110199,3.70409025,3366.7,3365.8,3.2078]
[1735668110391,3.70409025,3366.7,3365.7,2.89665636]
[1735668110392,3.70409025,3366.7,3366.3,3.50529]
[1735668110793,3.70409025,3366.7,3366.3,3.2078]
[1735668110988,3.40664025,3366.7,3366.3,3.2078]
[1735668111500,3.40664025,3366.7,3366.4,0.29747]
[1735668111703,0.29744,3366.9,3366.3,3.2078]
[1735668112001,3.2078,3367.5,3366.3,3.2078]
[1735668112195,2.5577,3367.6,3366.8,3.2078]
[1735668112496,3.40664025,3367.7,3367.3,0.2974]
[1735668112701,3.70401025,3367.7,3367.2,3.2078]
[1735668112904,3.40664025,3367.7,3367.4,0.01299401]
[1735668113298,6.76445636,3368.3,3367.4,0.01299401]
[1735668113497,0.29736,3367.8,3367.4,0.01299401]
[1735668113799,0.29737,3367.7,3367.2,3.5052]
[1735668114004,0.29736,3367.8,3367.6,0.01299401]
[1735668114694,0.29736,3367.8,3367.6,3.22079401]
[1735668114905,0.29736,3367.8,3367.7,0.01299401]
[1735668115195,3.8678,3368.3,3367.7,0.01299401]
[1735668115409,0.29733,3368.2,3367.7,0.01299401]
[1735668115700,0.29733,3368.2,3367.7,0.31035401]
[1735668116002,0.29733,3368.2,3367.9,0.01299401]
[1735668116204,3.8678,3368.3,3367.9,0.01299401]
[1735668116398,0.29734,3368.0,3367.9,0.01299401]
[1735668117997,0.29744,3366.9,3366.6,4.5978]
[1735668118206,0.29745,3366.7,3366.6,3.2078]
[1735668118404,0.74346,3367.5,3366.6,3.2078]
[1735668118706,3.64007636,3367.7,3366.8,0.29744]
[1735668118707,2.89665636,3367.7,3366.8,0.29744]
[1735668118901,0.29741,3367.2,3366.8,0.29744]
[1735668119099,3.95116,3368.0,3366.6,3.2078]
[1735668119303,0.74337,3367.9,3367.0,3.2078]
[1735668119604,2.89665636,3367.3,3366.6,3.2078]
[1735668119797,0.29745,3366.7,3366.6,3.2078]
[1735668120298,0.29744,3366.9,3366.6,3.2078]
[1735668120697,0.29745,3366.8,3366.6,3.2078]
[1735668120903,2.5235,3367.2,3366.6,3.2078]
[1735668121103,1.2157,3367.1,3366.6,3.2078]
[1735668121305,0.29745,3366.7,3366.6,3.2078]
[1735668122111,0.29748,3366.4,3366.1,3.5053]
[1735668122309,1.2157,3367.1,3366.1,3.2078]
[1735668122600,1.2157,3367.1,3366.2,0.29749]
[1735668122801,1.2157,3367.1,3366.1,3.2078]
[1735668122802,0.29746,3366.7,3366.3,0.29748]
[1735668123009,1.2157,3367.1,3366.6,3.2078]
[1735668123200,3.2078,3367.9,3367.0,3.2078]
[1735668123601,0.29741,3367.2,3367.0,3.2078]
[1735668123797,3.2078,3367.9,3366.5,3.2078]
[1735668123798,2.89665636,3367.3,3366.5,3.2078]
[1735668124101,0.29746,3366.6,3366.5,3.2078]
[1735668126109,2.89665636,3366.9,3366.1,3.2078]
[1735668126404,1.263,3367.0,3366.3,0.29748]
[1735668126405,0.29747,3366.6,3366.3,0.29748]
[1735668126797,0.29746,3366.7,3366.4,0.29748]
[1735668127002,0.29746,3366.7,3366.1,3.2078]
[1735668127003,1.263,3367.0,3366.1,3.2078]
[1735668127203,1.263,3367.0,3366.5,3.2078]
[1735668127204,0.29746,3366.7,3366.5,3.2078]
[1735668127402,0.29746,3366.7,3366.5,3.50527]
[1735668127806,0.29746,3366.6,3366.5,3.2078]
[1735668128104,0.29746,3366.6,3365.7,3.64049636]
[1735668128105,0.29748,3366.4,3366.1,4.5978]
[1735668128316,1.2688,3367.1,3366.1,7.49445636]
[1735668128608,1.262,3367.8,3366.8,3.2078]
[1735668128808,0.2974,3367.3,3367.1,0.29741]
[1735668129004,1.3211,3367.7,3366.9,1.39]
[1735668129207,1.3211,3367.7,3367.2,3.2078]
[1735668129402,1.61847,3367.7,3367.5,0.29737]
[1735668129804,1.61847,3367.7,3367.6,0.29737]
[1735668130005,1.95628,3368.4,3367.8,0.29735]
[1735668130006,0.29734,3368.0,3367.8,0.29735]
[1735668130208,0.29736,3367.8,3367.6,3.50517]
[1735668130508,0.29734,3368.0,3367.8,0.29735]
[1735668131111,1.3211,3368.2,3367.6,3.2078]
[1735668131409,0.29725,3369.0,3368.8,0.29726]
[1735668131608,3.2078,3369.1,3368.5,3.2078]
[1735668131910,0.29724,3369.1,3369.0,0.29725]
[1735668132110,0.29725,3369.0,3368.9,3.2078]
[1735668132406,0.29728,3368.6,3368.5,3.2078]
[1735668132610,0.29728,3368.6,3367.0,1.48713]
[1735668132611,0.29733,3368.2,3368.1,3.2078]
[1735668132806,0.29735,3368.0,3367.8,0.29735]
[1735668133005,0.29732,3368.2,3367.7,3.2078]
[1735668133206,1.2149,3368.5,3367.7,3.2078]
[1735668133207,1.2416,3368.4,3367.7,3.2078]
[1735668133507,1.2416,3368.4,3367.9,0.29734]
[1735668133508,0.29731,3368.3,3367.9,0.29734]
[1735668133707,0.29735,3367.9,3367.8,3.2078]
[1735668133908,1.2416,3368.4,3367.8,0.29735]
[1735668133909,0.29734,3368.0,3367.8,0.29735]
[1735668134211,1.2416,3368.4,3367.4,3.2078]
[1735668134409,1.2416,3368.4,3368.3,0.29731]
[1735668134912,1.2416,3368.4,3368.2,3.50512]
[1735668135211,1.2416,3368.4,3368.3,0.29731]
[1735668135613,1.2416,3368.4,3368.2,3.50512]
[1735668135813,1.2416,3368.4,3368.2,3.2078]
[1735668136111,1.2416,3368.4,3368.3,0.29731]
[1735668136509,3.2078,3369.1,3368.2,3.2078]
[1735668136703,0.29726,3368.9,3368.4,0.2973]
[1735668137010,1.263,3369.0,3368.1,3.2078]
[1735668137312,1.263,3369.0,3367.9,1.389]
[1735668137313,0.29728,3368.7,3368.5,3.50509]
[1735668137905,1.263,3369.0,3368.1,3.2078]
[1735668138108,1.263,3369.0,3368.1,3.50513]
[1735668138109,0.29732,3368.3,3368.1,3.50513]
[1735668138306,0.29731,3368.3,3368.1,3.50513]
[1735668138510,0.29727,3368.8,3368.2,0.29731]
[1735668138707,0.74315,3368.9,3368.1,3.2078]
[1735668138904,1.263,3369.0,3368.1,3.2078]
[1735668139109,0.29732,3368.2,3368.1,3.2078]
[1735668139304,0.29732,3368.3,3368.1,3.2078]
[1735668139505,6.263,3369.0,3368.1,3.2078]
[1735668139709,6.263,3369.0,3367.7,3.2078]
[1735668139710,0.29736,3367.8,3367.7,3.2078]
[1735668139909,0.29736,3367.8,3367.5,0.29738]
[1735668140109,1.3264,3368.2,3367.3,3.2078]
[1735668140414,0.74333,3368.1,3367.3,3.2078]
[1735668140712,1.3264,3368.2,3367.3,3.2078]
[1735668140903,0.29736,3367.8,3367.5,0.29738]
[1735668141303,0.29736,3367.8,3367.5,0.29737]
[1735668142208,2.5632,3368.2,3367.3,3.2078]
[1735668142713,0.29737,3367.7,3367.3,3.2078]
[1735668143014,2.5632,3368.2,3367.3,3.2078]
[1735668143211,0.29739,3367.4,3367.3,3.2078]
[1735668145211,3.2078,3367.8,3367.0,0.29742]
[1735668145416,0.29743,3367.0,3366.9,3.2078]
[1735668145614,0.29742,3367.1,3366.9,3.50523]
[1735668145814,0.74342,3367.7,3366.9,3.2078]
[1735668146013,0.29743,3367.0,3366.9,3.2078]
[1735668146420,3.2078,3367.8,3366.9,3.2078]
[1735668146718,0.29737,3367.6,3367.1,0.29741]
[1735668146907,0.2974,3367.4,3367.1,0.29741]
[1735668147522,0.74339,3367.9,3367.1,0.29741]
[1735668147720,0.2974,3367.3,3367.1,0.29741]
[1735668147920,0.2974,3367.3,3367.1,0.29742]
[1735668148214,6.51432,3368.2,3367.2,0.2974]
[1735668148414,0.29739,3367.4,3367.2,0.2974]
[1735668149210,0.29739,3367.4,3366.9,3.2078]
[1735668149211,0.29737,3367.7,3367.5,0.29738]
[1735668149619,5.771,3368.2,3366.9,3.2078]
[1735668149620,0.29738,3367.6,3367.4,0.29739]
[1735668149813,0.74335,3368.1,3366.9,3.2078]
[1735668150125,0.2974,3367.4,3367.2,0.2974]
[1735668150514,0.74336,3368.0,3367.2,0.2974]
[1735668150719,3.2078,3367.8,3366.9,3.2078]
[1735668150920,0.74348,3367.5,3366.9,3.2078]
[1735668151120,0.29743,3367.0,3366.9,3.2078]
[1735668151723,0.29742,3367.1,3366.9,3.2078]
[1735668151920,2.5311,3367.4,3366.9,3.50523]
[1735668152125,0.29741,3367.2,3367.0,0.29743]
[1735668152326,2.5311,3367.4,3366.9,3.2078]
[1735668153022,2.82849,3367.4,3367.3,0.2974]
[1735668153223,0.2974,3367.3,3366.9,3.2078]
[1735668153420,0.29741,3367.2,3366.9,3.2078]
[1735668153619,1.2189,3367.4,3366.9,3.2078]
[1735668154217,1.51629,3367.4,3367.2,0.2974]
[1735668154417,1.2189,3367.4,3366.9,3.2078]
[1735668154619,1.2189,3367.4,3367.3,0.2974]
[1735668155022,1.2189,3367.4,3366.9,3.2078]
[1735668155223,0.2974,3367.3,3367.1,0.29741]
[1735668155422,1.2189,3367.4,3366.9,3.2078]
[1735668155623,0.29743,3367.0,3366.9,3.2078]
[1735668156127,0.29743,3367.0,3366.8,4.58572387]
[1735668156128,0.29743,3366.9,3366.8,4.58572387]
[1735668156425,1.61663,3366.9,3366.8,4.58572387]
[1735668156621,1.3192,3366.9,3366.5,4.58572387]
[1735668156821,0.29746,3366.6,3366.5,4.58572387]
[1735668158122,0.29747,3366.5,3366.4,0.29747]
[1735668158330,0.29749,3366.3,3366.2,0.29749]
[1735668158522,1.229,3366.5,3366.1,3.2078]
[1735668158724,0.2975,3366.2,3366.1,3.2078]
[1735668158925,0.29751,3366.0,3365.9,4.58572387]
[1735668159223,0.29751,3366.0,3365.9,2.58442387]
[1735668159427,4.4162,3366.1,3365.8,6.87858581]
[1735668159617,0.29753,3365.8,3365.7,6.87858581]
[1735668160231,0.29753,3365.8,3365.7,7.17612581]
[1735668160625,0.29753,3365.8,3365.7,6.87858581]
[1735668161120,0.29755,3365.6,3365.5,0.29755]
[1735668161519,4.4162,3366.1,3365.3,3.2078]
[1735668161726,0.74379,3366.0,3365.3,3.2078]
[1735668161925,0.29756,3365.5,3365.4,0.29756]
[1735668162125,0.29756,3365.5,3365.3,3.2078]
[1735668162126,0.74379,3366.0,3365.3,3.50537]
[1735668162429,0.29756,3365.5,3365.3,3.50537]
[1735668162727,0.29755,3365.6,3365.3,3.2078]
[1735668162930,0.29755,3365.6,3365.4,0.29756]
[1735668163130,1.2493,3365.9,3365.3,3.2078]
[1735668163331,0.29755,3365.7,3365.3,3.2078]
[1735668163527,1.2493,3365.9,3365.3,3.2078]
[1735668163831,0.29757,3365.4,3365.3,3.2078]
[1735668164031,0.29755,3365.6,3365.4,0.29756]
[1735668164323,1.2493,3365.9,3365.4,0.29756]
[1735668164529,1.2493,3365.9,3365.3,3.50537]
[1735668164833,1.2493,3365.9,3365.4,0.29757]
[1735668165126,1.2493,3365.9,3365.3,3.2078]
[1735668165331,0.29755,3365.6,3365.4,0.29756]
[1735668165630,0.29756,3365.5,3365.3,3.50537]
[1735668166028,1.2493,3365.9,3365.3,3.2078]
[1735668166324,0.29756,3365.5,3365.3,3.50538]
[1735668166527,1.2493,3365.9,3365.3,3.2078]
[1735668166730,0.29757,3365.4,3365.3,3.2078]
[1735668166927,0.29756,3365.5,3365.3,3.50537]
[1735668167124,0.29757,3365.4,3365.3,3.2078]
[1735668167327,1.285,3365.7,3365.3,3.2078]
[1735668167627,0.29757,3365.4,3365.3,3.2078]
[1735668169230,1.285,3365.7,3365.3,3.2078]
[1735668169427,1.285,3365.7,3365.5,0.29756]
[1735668169629,1.285,3365.7,3365.6,0.29755]
[1735668169828,1.285,3365.7,3365.3,3.2078]
[1735668170029,1.58254,3365.7,3365.5,0.29755]
[1735668170229,1.58254,3365.7,3365.3,3.2078]
[1735668170425,1.58254,3365.7,3365.6,0.29755]
[1735668170627,0.29754,3365.8,3365.6,0.29755]
[1735668170928,0.74377,3366.1,3365.3,3.2078]
[1735668171130,2.5464,3366.2,3365.6,0.29755]
[1735668171633,0.29754,3365.7,3365.6,0.29755]
[1735668171829,0.29754,3365.8,3365.6,0.29755]
[1735668172428,0.29754,3365.8,3364.8,2.88606582]
[1735668172429,1.3255,3366.2,3365.7,3.2078]
[1735668172631,0.29744,3366.9,3366.1,3.95156]
[1735668172938,0.29743,3367.0,3366.8,0.29744]
[1735668173122,0.00235853,3367.3,3366.6,3.2078]
[1735668173437,0.00235853,3367.3,3366.7,2.02354]
[1735668173628,0.00235853,3367.3,3367.1,3.2078]
[1735668173926,0.29975853,3367.3,3367.2,0.29741]
[1735668174325,0.00235853,3367.3,3367.2,0.29741]
[1735668174724,0.00235853,3367.3,3367.1,3.2078]
[1735668174935,0.29741,3367.2,3367.1,3.2078]
[1735668175127,0.00235853,3367.3,3367.1,3.2078]
[1735668175328,0.00235853,3367.3,3367.2,0.29741]
[1735668176424,0.00235853,3367.3,3367.2,1.53491]
[1735668177227,3.2078,3368.8,3367.3,0.7435]
[1735668177429,1.2741,3368.7,3368.1,0.29732]
[1735668177830,1.2741,3368.7,3368.0,3.2078]
[1735668178029,0.2973,3368.5,3368.2,0.29732]
[1735668178230,1.2741,3368.7,3368.0,3.2078]
[1735668178432,1.2741,3368.7,3368.4,3.2078]
[1735668178739,0.29728,3368.6,3368.4,3.2078]
[1735668179122,0.29726,3368.9,3368.5,0.29728]
[1735668179324,0.29726,3368.9,3368.4,3.2078]
[1735668179524,0.29727,3368.8,3368.6,0.29728]
[1735668179735,2.6478,3369.0,3368.4,3.2078]
[1735668179736,0.29729,3368.6,3368.4,3.2078]
[1735668179934,0.2973,3368.5,3368.2,0.29731]
[1735668180127,2.6478,3369.0,3368.0,3.2078]
[1735668180441,0.29733,3368.1,3368.0,3.2078]
[1735668180629,0.29732,3368.3,3368.1,0.29732]
[1735668180830,0.29729,3368.6,3368.3,0.2973]
[1735668181035,2.6478,3369.0,3368.2,0.29732]
[1735668181333,0.29731,3368.4,3368.1,0.29732]
[1735668181633,0.29726,3368.9,3368.6,0.29728]
[1735668181828,1.2802,3369.2,3368.4,3.2078]
[1735668182034,0.29727,3368.8,3368.6,0.29728]
[1735668182535,0.29727,3368.8,3368.5,0.29729]
[1735668182832,1.2802,3369.2,3368.4,3.2078]
[1735668182833,0.29729,3368.5,3368.4,3.2078]
[1735668183232,0.74326,3368.4,3367.5,3.2078]
[1735668183428,0.29735,3367.9,3367.7,0.29736]
[1735668183827,0.29737,3367.6,3367.5,3.2078]
[1735668184033,1.2511,3368.3,3367.6,0.29737]
[1735668184232,0.29736,3367.8,3367.6,0.29737]
[1735668184430,1.2511,3368.3,3367.5,3.2078]
[1735668184634,2.27332893,3368.2,3367.5,3.2078]
[1735668184831,0.29736,3367.8,3367.6,0.29737]
[1735668185143,0.29737,3367.6,3367.5,3.2078]
[1735668185330,0.29737,3367.6,3367.4,0.29738]
[1735668185531,0.29737,3367.7,3367.5,3.50518]
[1735668185827,0.29735,3367.9,3367.7,0.29736]
[1735668186035,2.27332893,3368.0,3367.5,3.2078]
[1735668186226,0.29741,3367.2,3367.1,3.2078]
[1735668186426,0.29741,3367.2,3367.0,0.29742]
[1735668186834,0.2974,3367.3,3366.9,0.29743]
[1735668187036,0.2974,3367.4,3367.1,0.29741]
[1735668187234,0.29739,3367.4,3367.1,0.29741]
[1735668187438,0.2974,3367.3,3367.1,0.29742]
[1735668187836,0.2974,3367.3,3367.0,0.29742]
[1735668188334,2.27332893,3367.5,3367.4,0.29739]
[1735668188538,2.27332893,3367.6,3367.5,0.29738]
[1735668188740,2.27332893,3367.6,3367.5,3.2078]
[1735668188940,0.29739,3367.5,3367.2,1.5666]
[1735668189133,2.27332893,3367.6,3367.5,0.29738]
[1735668189929,2.27332893,3368.0,3367.4,3.2078]
[1735668190436,2.27332893,3368.0,3367.5,0.29738]
[1735668190437,0.29737,3367.7,3367.5,0.29738]
[1735668190637,0.29737,3367.6,3367.4,3.50519]
[1735668191144,2.27332893,3368.0,3367.4,3.2078]
[1735668191443,0.74331,3368.2,3367.5,0.29738]
[1735668191444,0.29736,3367.8,3367.5,0.29738]
[1735668191639,0.29737,3367.7,3367.5,0.29738]
[1735668191938,0.74333,3368.1,3367.4,3.2078]
[1735668192142,0.74333,3368.1,3367.5,0.29738]
[1735668192338,1.2511,3368.3,3367.4,3.2078]
[1735668192339,1.48662,3368.2,3367.4,3.2078]
[1735668192547,4.4589,3368.3,3366.9,3.2078]
[1735668192548,2.88606582,3368.0,3366.9,3.2078]
[1735668192732,0.29741,3367.2,3367.0,0.29742]
[1735668193142,0.29741,3367.2,3366.9,3.2078]
[1735668193336,0.29741,3367.2,3366.9,3.50523]
[1735668193542,0.74338,3367.9,3366.9,3.2078]
[1735668193745,0.74342,3367.7,3366.9,3.2078]
[1735668193946,1.2743,3367.6,3366.9,3.2078]
[1735668194246,0.2974,3367.3,3367.1,0.29742]
[1735668194446,2.5088,3367.6,3366.9,3.2078]
[1735668194643,1.2374,3367.5,3366.9,3.2078]
[1735668194845,0.29739,3367.4,3367.3,3.2078]
[1735668195246,1.2374,3367.5,3367.3,3.2078]
[1735668195453,2.88606582,3368.0,3367.3,3.2078]
[1735668195658,4.12346582,3368.0,3367.3,3.2078]
[1735668196052,0.29738,3367.5,3367.3,3.5052]
[1735668196254,1.2374,3368.0,3367.3,3.2078]
[1735668196556,1.2374,3368.0,3367.6,0.29737]
[1735668196557,0.29736,3367.8,3367.6,0.29737]
[1735668196755,1.2345,3368.2,3367.7,3.2078]
[1735668196955,0.29732,3368.2,3368.0,0.29733]
[1735668197150,3.2078,3368.3,3367.7,3.2078]
[1735668197347,0.29736,3367.8,3367.7,3.2078]
[1735668197550,0.29739,3367.4,3367.3,3.2078]
[1735668197752,0.29741,3367.2,3367.0,1.221]
[1735668197949,0.2974,3367.4,3367.0,1.221]
[1735668198151,1.3093,3367.7,3367.0,1.221]
[1735668198351,1.3093,3367.7,3366.9,3.2078]
[1735668198352,0.29743,3367.0,3366.9,3.2078]
[1735668202162,0.29743,3367.0,3366.4,3.2078]
[1735668202163,3.2078,3367.0,3366.4,3.2078]
[1735668202459,3.2078,3366.6,3365.9,1.3271]
[1735668202660,2.88606582,3366.4,3365.5,3.2078]
[1735668202956,0.29758,3365.3,3365.1,7.2094]
[1735668203259,0.29759,3365.2,3365.1,3.2078]
[1735668203656,3.2078,3365.4,3364.7,7.17620581]
[1735668203864,0.29761,3365.0,3364.7,7.17620581]
[1735668204059,0.2976,3365.1,3364.8,0.29762]
[1735668204264,0.2976,3365.1,3364.9,0.29761]
[1735668204560,0.2976,3365.1,3364.6,3.2078]
[1735668204561,2.5216,3365.7,3364.6,3.2078]
[1735668205058,0.29763,3364.7,3364.6,3.2078]
[1735668205255,0.29763,3364.7,3364.5,1.3263]
[1735668205456,2.88606582,3365.2,3364.0,3.50549]
[1735668205457,0.29766,3364.4,3364.0,3.50549]
[1735668205653,3.2078,3365.0,3364.0,3.2078]
[1735668205858,3.50541,3365.0,3364.1,0.29768]
[1735668206058,3.50541,3365.0,3364.6,0.29763]
[1735668206258,3.2078,3365.0,3364.0,11.83809582]
[1735668206459,0.74384,3365.8,3364.9,3.2078]
[1735668206460,3.2078,3365.8,3364.9,3.2078]
[1735668206661,1.52384,3365.7,3365.3,0.29757]
[1735668206866,3.2078,3365.8,3365.1,0.29759]
[1735668207062,3.2078,3365.8,3365.5,0.29756]
[1735668207563,3.50534,3365.8,3365.4,0.29757]
[1735668207866,2.88606582,3366.0,3365.1,1.2747]
[1735668208055,0.29752,3365.9,3365.4,0.29756]
[1735668208368,0.29755,3365.7,3365.1,1.2747]
[1735668208668,0.29755,3365.6,3365.2,0.29758]
[1735668209666,0.29758,3365.3,3364.9,3.50541]
[1735668209966,0.2976,3365.0,3364.9,3.2078]
[1735668210266,0.29756,3365.5,3365.1,0.29759]
[1735668211063,0.29756,3365.6,3364.9,3.2078]
[1735668211263,3.2078,3365.8,3364.9,3.2078]
[1735668211463,0.29754,3365.7,3365.3,0.29757]
[1735668211766,3.2078,3365.8,3364.9,3.2078]
[1735668211968,2.88606582,3365.6,3364.7,1.2264]
[1735668212161,2.88606582,3365.2,3364.4,3.2078]
[1735668212360,2.88606582,3365.2,3364.1,1.386]
[1735668212361,0.29763,3364.7,3364.1,1.386]
[1735668212557,3.50541,3365.0,3364.3,3.2078]
[1735668212766,6.83776582,3365.6,3364.4,1.2971]
[1735668212965,0.744,3365.1,3364.1,1.68368]
[1735668213162,6.09386582,3365.2,3363.8,5.7313]
[1735668213370,0.29768,3364.2,3363.8,6.029]
[1735668213671,0.74402,3365.0,3363.8,4.4342]
[1735668213672,6.09386582,3364.8,3363.8,4.4342]